bitfinex/quotes_BTCUSD_20240718
["timestamp","ask_amount","ask_price","bid_price","bid_amount"]
[1721268994910,0.00175979,64543.0,64542.0,0.10347527]
[1721268995128,0.00175979,64543.0,64542.0,0.17867527]
[1721268995804,0.15669479,64543.0,64542.0,0.17867527]
[1721268996064,0.93081653,64543.0,64542.0,0.17867527]
[1721268996674,1.24068653,64543.0,64542.0,0.17867527]
[1721268996880,1.34068653,64543.0,64542.0,0.13579901]
[1721268997329,0.92964,64541.0,64540.0,0.0154242]
[1721268997543,1.33896174,64541.0,64540.0,0.0154242]
[1721268997961,0.1,64541.0,64540.0,0.05830046]
[1721268998170,0.309855,64547.0,64546.0,0.04287626]
[1721268998374,0.71916174,64547.0,64546.0,0.04287626]
[1721268998581,1.03077342,64547.0,64546.0,0.04287626]
[1721268998790,1.03076942,64547.0,64546.0,0.04287626]
[1721268999211,1.03076942,64547.0,64540.0,0.0154242]
[1721268999212,0.34919242,64547.0,64540.0,0.0154242]
[1721268999435,0.15493,64545.0,64544.0,0.04287626]
[1721268999613,0.40931174,64545.0,64544.0,0.04287626]
[1721268999857,1.02903374,64545.0,64544.0,0.04287626]
[1721269000059,1.0785559,64545.0,64544.0,0.04287626]
[1721269000268,1.33889874,64545.0,64544.0,0.04287626]
[1721269000475,0.15494,64541.0,64540.0,0.0154242]
[1721269000681,0.61920174,64541.0,64540.0,0.0154242]
[1721269000959,0.92908174,64541.0,64540.0,0.05830046]
[1721269001608,0.93084242,64541.0,64540.0,0.0154242]
[1721269002039,0.93084242,64541.0,64540.0,0.05830046]
[1721269003750,0.62096242,64541.0,64540.0,0.05830046]
[1721269003980,0.93084242,64541.0,64540.0,0.0154242]
[1721269004669,0.93084242,64541.0,64540.0,0.05830046]
[1721269004924,0.93084242,64541.0,64540.0,0.0154242]
[1721269005131,1.24072242,64541.0,64540.0,0.0154242]
[1721269005334,1.43377242,64541.0,64540.0,0.0154242]
[1721269008257,2.78885242,64541.0,64540.0,0.0154242]
[1721269008472,2.79597616,64541.0,64540.0,0.0154242]
[1721269008888,2.81897616,64541.0,64540.0,0.0154242]
[1721269009338,2.78885242,64541.0,64540.0,0.0154242]
[1721269009534,2.83731751,64541.0,64540.0,0.0154242]
[1721269009763,2.94320199,64541.0,64540.0,0.0154242]
[1721269009997,2.78885242,64541.0,64540.0,0.0104242]
[1721269011700,2.83172842,64541.0,64540.0,0.0104242]
[1721269012195,2.85472842,64541.0,64540.0,0.0104242]
[1721269012472,2.86185216,64541.0,64540.0,0.0104242]
[1721269012697,3.32608173,64541.0,64540.0,0.0104242]
[1721269013207,1.178001,64519.0,64518.0,0.025]
[1721269013432,1.33238274,64519.0,64518.0,0.025]
[1721269013661,1.43238274,64519.0,64518.0,0.025]
[1721269014395,1.12239674,64519.0,64518.0,0.14505105]
[1721269014620,1.12415742,64519.0,64518.0,0.14505105]
[1721269014844,0.81417142,64519.0,64518.0,0.14505105]
[1721269015085,1.12415742,64519.0,64518.0,0.20095105]
[1721269015313,0.25614242,64519.0,64518.0,0.20095105]
[1721269015552,0.15614242,64519.0,64518.0,0.20095105]
[1721269015803,0.62112142,64519.0,64518.0,0.12377626]
[1721269016029,0.93110742,64519.0,64518.0,0.02]
[1721269016716,0.93110742,64519.0,64518.0,0.06287626]
[1721269016964,0.93110742,64519.0,64518.0,0.02]
[1721269017214,1.24109342,64519.0,64518.0,0.02]
[1721269017434,1.33414342,64519.0,64518.0,0.02]
[1721269018134,1.43414342,64519.0,64518.0,0.02]
[1721269018373,1.58391001,64519.0,64518.0,0.02]
[1721269018615,1.43414342,64519.0,64518.0,0.02]
[1721269019320,1.43414342,64519.0,64518.0,0.06287626]
[1721269019543,1.43414342,64519.0,64518.0,0.02]
[1721269019783,1.43414342,64519.0,64518.0,0.06287626]
[1721269020166,1.43414342,64519.0,64518.0,0.02]
[1721269020509,1.43414342,64519.0,64518.0,0.06287626]
[1721269020764,0.31113542,64519.0,64518.0,0.20187626]
[1721269020990,0.62112142,64519.0,64518.0,0.20187626]
[1721269021220,0.93110742,64519.0,64518.0,0.20280026]
[1721269021448,1.24109342,64519.0,64518.0,0.06380026]
[1721269021926,0.31113542,64519.0,64518.0,0.06380026]
[1721269022419,0.62112142,64519.0,64518.0,0.06380026]
[1721269022652,0.93110742,64519.0,64518.0,0.06380026]
[1721269022877,1.24109342,64519.0,64518.0,0.06380026]
[1721269023129,0.93110742,64519.0,64518.0,0.06380026]
[1721269024066,1.02415742,64519.0,64518.0,0.020924]
[1721269024302,1.33414342,64519.0,64518.0,0.020924]
[1721269024443,1.33414342,64519.0,64518.0,0.06380026]
[1721269025230,1.33414342,64519.0,64518.0,0.020924]
[1721269025416,1.43414342,64519.0,64518.0,0.020924]
[1721269026031,1.43414342,64519.0,64518.0,0.06380026]
[1721269026575,1.43414342,64519.0,64518.0,0.020924]
[1721269026794,1.43414342,64519.0,64518.0,0.06380026]
[1721269027514,1.43414342,64519.0,64518.0,0.020924]
[1721269027965,1.12415742,64519.0,64518.0,0.020924]
[1721269028228,0.81417142,64519.0,64518.0,0.06380026]
[1721269028441,0.62112142,64519.0,64518.0,0.20410026]
[1721269028666,0.62112142,64519.0,64518.0,0.020924]
[1721269028667,1.33414342,64519.0,64518.0,0.020924]
[1721269028939,1.74412942,64519.0,64518.0,0.020924]
[1721269032648,1.76843858,64519.0,64518.0,0.020924]
[1721269032941,1.76843858,64519.0,64518.0,0.06380026]
[1721269032942,1.45845258,64519.0,64518.0,0.06380026]
[1721269033129,1.02415742,64519.0,64518.0,0.12630026]
[1721269033361,0.93110742,64519.0,64518.0,0.12130026]
[1721269034052,0.00176068,64519.0,64518.0,0.12130026]
[1721269034285,0.15675368,64519.0,64518.0,0.12130026]
[1721269034502,0.15675368,64519.0,64518.0,0.25004294]
[1721269034728,0.00176068,64519.0,64518.0,0.25314259]
[1721269034997,0.00176068,64519.0,64518.0,0.32804294]
[1721269037089,0.00176068,64519.0,64518.0,0.19930026]
[1721269037314,0.00176068,64519.0,64518.0,0.32803771]
[1721269038225,0.00176068,64519.0,64518.0,0.19930026]
[1721269038479,0.00176068,64519.0,64518.0,0.79612242]
[1721269038698,0.00176068,64519.0,64518.0,1.25998994]
[1721269038934,0.00176068,64519.0,64518.0,1.87997194]
[1721269039170,0.00176068,64519.0,64518.0,1.56998094]
[1721269039438,0.00176068,64519.0,64518.0,1.68690442]
[1721269039644,0.154936,64543.0,64541.0,0.04287626]
[1721269039853,0.31015874,64542.0,64541.0,0.04287626]
[1721269040066,0.00084,64542.0,64541.0,0.04287626]
[1721269040494,0.00084,64542.0,64541.0,0.18117626]
[1721269040719,0.00084,64542.0,64541.0,0.64909436]
[1721269040952,0.00084,64542.0,64541.0,0.18117626]
[1721269045534,0.155777,64542.0,64541.0,0.18117626]
[1721269045733,0.00084,64542.0,64541.0,0.18117626]
[1721269046933,0.00084,64542.0,64541.0,0.1383]
[1721269047091,0.00084,64542.0,64541.0,0.18117626]
[1721269050672,0.155777,64542.0,64541.0,0.18117626]
[1721269050911,0.154942,64540.0,64539.0,0.04287626]
[1721269051137,0.247999,64537.0,64536.0,0.04287626]
[1721269051359,0.309957,64525.0,64522.0,0.0606]
[1721269051578,0.154983,64523.0,64522.0,0.10347626]
[1721269051836,0.154983,64523.0,64522.0,0.0606]
[1721269052531,0.154981,64524.0,64523.0,0.04287626]
[1721269052938,0.464943,64524.0,64523.0,0.04287626]
[1721269053145,1.23924874,64524.0,64523.0,0.04287626]
[1721269053372,0.774927,64522.0,64521.0,0.04287626]
[1721269053566,0.464979,64519.0,64518.0,0.05880026]
[1721269053741,0.61936074,64519.0,64518.0,0.04380026]
[1721269054160,0.309945,64528.0,64527.0,0.04287626]
[1721269054364,0.71929774,64528.0,64527.0,0.04287626]
[1721269054562,1.02924274,64528.0,64527.0,0.04287626]
[1721269054801,0.154986,64522.0,64518.0,0.000924]
[1721269055020,0.30935274,64528.0,64527.0,0.04287626]
[1721269055406,0.154974,64527.0,64518.0,0.000924]
[1721269055561,0.30935574,64527.0,64526.0,0.04287626]
[1721269055958,0.154976,64526.0,64523.0,0.07717479]
[1721269056348,0.30935574,64527.0,64526.0,0.04287626]
[1721269056672,0.30935574,64527.0,64523.0,0.07717479]
[1721269056865,0.002794,64526.0,64523.0,0.07717479]
[1721269057265,0.15777,64526.0,64525.0,0.04287626]
[1721269057471,0.154976,64526.0,64525.0,0.04287626]
[1721269057684,0.15438174,64527.0,64523.0,0.07717479]
[1721269057898,0.30935674,64527.0,64523.0,0.07717479]
[1721269058757,0.30935674,64527.0,64526.0,0.04287626]
[1721269058958,0.61930374,64527.0,64526.0,0.04287626]
[1721269059181,0.92925074,64527.0,64526.0,0.04287626]
[1721269059384,0.92925074,64527.0,64518.0,0.000924]
[1721269059385,0.15438174,64527.0,64521.0,0.04287626]
[1721269059586,0.464956,64522.0,64521.0,0.04287626]
[1721269059787,0.46435274,64522.0,64521.0,0.04287626]
[1721269060162,0.154993,64519.0,64518.0,0.000924]
[1721269060320,0.154993,64519.0,64518.0,0.04380026]
[1721269060909,0.464979,64519.0,64518.0,0.04380026]
[1721269061108,0.92934674,64519.0,64518.0,0.04380026]
[1721269063356,1.23933274,64519.0,64518.0,0.04380026]
[1721269064435,1.23933274,64519.0,64518.0,0.000924]
[1721269064644,1.7519914,64519.0,64518.0,0.000924]
[1721269065282,1.7519914,64519.0,64518.0,0.04380026]
[1721269065489,1.4881231,64519.0,64518.0,0.000924]
[1721269065701,1.4420054,64519.0,64518.0,0.000924]
[1721269066375,1.4420054,64519.0,64518.0,0.04380026]
[1721269066586,1.48811995,64519.0,64518.0,0.000924]
[1721269066797,1.47849729,64519.0,64518.0,0.000924]
[1721269067002,1.48811997,64519.0,64518.0,0.000924]
[1721269067218,1.47849838,64519.0,64518.0,0.000924]
[1721269067455,1.47849527,64519.0,64518.0,0.04380026]
[1721269067674,1.47849527,64519.0,64518.0,0.000924]
[1721269067675,1.43238274,64519.0,64518.0,0.000924]
[1721269068614,1.43238274,64519.0,64518.0,0.04380026]
[1721269069088,1.43238274,64519.0,64518.0,0.000924]
[1721269070017,0.40219006,64524.0,64518.0,0.000924]
[1721269070018,0.309958,64525.0,64524.0,0.04287626]
[1721269070290,0.309958,64525.0,64521.0,0.04287626]
[1721269070291,0.774927,64522.0,64521.0,0.04287626]
[1721269070531,1.23927974,64522.0,64521.0,0.04287626]
[1721269071586,1.23927974,64522.0,64518.0,0.000924]
[1721269071587,1.084951,64519.0,64518.0,0.000924]
[1721269071802,1.33238274,64519.0,64518.0,0.04380026]
[1721269073301,1.33238274,64519.0,64518.0,0.000924]
[1721269074202,1.34200035,64519.0,64518.0,0.000924]
[1721269074417,1.33238274,64519.0,64518.0,0.000924]
[1721269074624,1.3420002,64519.0,64518.0,0.000924]
[1721269075266,1.38809771,64519.0,64518.0,0.000924]
[1721269076348,1.69808371,64519.0,64518.0,0.000924]
[1721269076552,1.82112766,64519.0,64518.0,0.000924]
[1721269076997,1.82108902,64519.0,64518.0,0.000924]
[1721269077202,1.75198059,64519.0,64518.0,0.000924]
[1721269077487,1.82106788,64519.0,64518.0,0.000924]
[1721269079159,1.84106788,64519.0,64518.0,0.000924]
[1721269079365,1.53108188,64519.0,64518.0,0.000924]
[1721269079586,1.53107062,64519.0,64518.0,0.000924]
[1721269080053,1.4619907,64519.0,64518.0,0.000924]
[1721269080512,1.53107062,64519.0,64518.0,0.000924]
[1721269080718,1.4619907,64519.0,64518.0,0.000924]
[1721269081385,1.4619907,64519.0,64518.0,0.04380026]
[1721269081386,1.1520047,64519.0,64518.0,0.04380026]
[1721269081988,1.15200044,64519.0,64518.0,0.000924]
[1721269082199,1.46198644,64519.0,64518.0,0.000924]
[1721269082826,1.15200044,64519.0,64518.0,0.04380026]
[1721269083265,1.46198644,64519.0,64518.0,0.000924]
[1721269083683,1.50801162,64519.0,64518.0,0.000924]
[1721269083894,1.85798876,64519.0,64518.0,0.000924]
[1721269084107,1.98826314,64519.0,64518.0,0.000924]
[1721269084317,1.99538688,64519.0,64518.0,0.000924]
[1721269084758,1.99538688,64519.0,64518.0,1e-06]
[1721269084759,2.30537288,64519.0,64518.0,1e-06]
[1721269084961,2.14149574,64515.0,64514.0,0.025]
[1721269085202,2.14149574,64515.0,64514.0,1e-06]
[1721269085203,3.06075224,64515.0,64514.0,1e-06]
[1721269085427,0.558165,64500.0,64486.0,0.50592497]
[1721269085654,1.40879684,64500.0,64486.0,0.46304871]
[1721269085889,1.40879684,64500.0,64485.0,0.0622]
[1721269085890,1.50879684,64500.0,64485.0,0.0622]
[1721269086099,1.50879684,64500.0,64489.0,0.04287626]
[1721269086315,1.50879684,64500.0,64485.0,0.0622]
[1721269086755,1.50879684,64500.0,64477.0,0.009196]
[1721269086756,1.81887384,64500.0,64477.0,0.009196]
[1721269086980,1.81887384,64500.0,64479.0,0.0655]
[1721269086981,2.63098255,64500.0,64479.0,0.0655]
[1721269087220,2.65396102,64500.0,64480.0,0.04287626]
[1721269087438,2.87212415,64500.0,64480.0,0.04287626]
[1721269087695,2.96399378,64500.0,64479.0,0.04287626]
[1721269087909,2.86252805,64500.0,64479.0,0.04287626]
[1721269088125,0.155091,64478.0,64477.0,0.009196]
[1721269088367,1.02288874,64478.0,64477.0,0.009196]
[1721269088635,0.558345,64475.0,64474.0,0.0148242]
[1721269088855,1.02292374,64475.0,64474.0,0.0148242]
[1721269089069,1.43312074,64475.0,64474.0,0.0148242]
[1721269089707,1.87900009,64475.0,64474.0,0.0148242]
[1721269090355,1.92239774,64475.0,64474.0,0.0148242]
[1721269090576,2.07172148,64475.0,64474.0,0.0148242]
[1721269090794,2.80801315,64475.0,64474.0,0.0148242]
[1721269091022,2.84188143,64475.0,64474.0,0.0148242]
[1721269091237,2.96284843,64475.0,64474.0,0.0148242]
[1721269091483,2.75365039,64475.0,64474.0,2e-07]
[1721269091706,2.55168443,64475.0,64474.0,2e-07]
[1721269092362,2.54209514,64475.0,64474.0,2e-07]
[1721269092578,2.39374878,64475.0,64474.0,2e-07]
[1721269092840,1.90551774,64475.0,64474.0,2e-07]
[1721269093048,1.95205056,64475.0,64474.0,2e-07]
[1721269093474,1.90551774,64475.0,64474.0,2e-07]
[1721269093685,2.05986731,64475.0,64474.0,2e-07]
[1721269094141,2.08999105,64475.0,64474.0,2e-07]
[1721269094368,2.21110775,64475.0,64474.0,2e-07]
[1721269094589,2.1868264,64475.0,64474.0,2e-07]
[1721269094807,2.52130494,64475.0,64474.0,2e-07]
[1721269095012,2.50130494,64475.0,64474.0,2e-07]
[1721269095232,3.01150194,64475.0,64474.0,2e-07]
[1721269095481,2.30663074,64461.0,64460.0,0.025]
[1721269095695,3.02884783,64461.0,64460.0,0.025]
[1721269096121,3.02884783,64461.0,64453.0,0.009296]
[1721269096122,1.49649674,64455.0,64453.0,0.009296]
[1721269096338,1.65087848,64455.0,64453.0,0.009296]
[1721269096542,2.16150783,64455.0,64453.0,0.009296]
[1721269096792,2.0055634,64455.0,64453.0,0.009296]
[1721269097004,1.99843966,64455.0,64453.0,0.009296]
[1721269097653,2.45310674,64454.0,64453.0,0.009296]
[1721269097877,3.09170008,64454.0,64453.0,0.009296]
[1721269098122,3.47754965,64454.0,64422.0,0.8426]
[1721269098352,0.09305,64436.0,64422.0,0.8426]
[1721269098578,0.155215,64427.0,64422.0,0.0636]
[1721269098806,0.155216,64426.0,64422.0,0.0636]
[1721269099019,0.15438174,64427.0,64422.0,0.0636]
[1721269099243,0.155224,64423.0,64422.0,0.0636]
[1721269099454,0.155224,64423.0,64418.0,0.04287626]
[1721269099455,0.4657,64419.0,64418.0,0.04287626]
[1721269099658,1.02359874,64419.0,64418.0,0.04287626]
[1721269099871,0.776202,64416.0,64415.0,0.0604]
[1721269100082,0.155255,64410.0,64409.0,0.06688546]
[1721269100307,0.15438174,64410.0,64409.0,0.20278546]
[1721269100515,0.04914285,64430.0,64429.0,0.04287626]
[1721269100746,0.93041674,64430.0,64429.0,0.04287626]
[1721269101207,0.25438174,64430.0,64427.0,0.0604]
[1721269101415,0.25438174,64430.0,64416.0,0.04287626]
[1721269101416,0.155238,64417.0,64416.0,0.04287626]
[1721269101642,0.62009674,64417.0,64416.0,0.04287626]
[1721269101860,0.30961974,64417.0,64416.0,0.04287626]
[1721269102071,0.15438174,64417.0,64416.0,0.04287626]
[1721269102277,0.62009674,64417.0,64416.0,0.04287626]
[1721269102494,0.93057374,64417.0,64416.0,0.04287626]
[1721269103388,0.620962,64416.0,64414.0,0.083]
[1721269103642,0.09305,64420.0,64413.0,0.10647626]
[1721269103643,0.558786,64414.0,64413.0,0.04287626]
[1721269103882,0.558786,64414.0,64400.0,0.04287626]
[1721269103883,0.869325,64410.0,64400.0,0.04287626]
[1721269104120,0.869325,64410.0,64394.0,0.00330593]
[1721269104121,2.05085048,64410.0,64394.0,0.00330593]
[1721269104344,2.86136048,64410.0,64409.0,2e-07]
[1721269104570,2.69807631,64410.0,64409.0,2e-07]
[1721269104793,2.70087031,64410.0,64409.0,2e-07]
[1721269105025,1.83321674,64410.0,64409.0,2e-07]
[1721269106384,1.43421674,64410.0,64409.0,2e-07]
[1721269106591,1.12370674,64410.0,64409.0,0.04287646]
[1721269106807,1.02370674,64410.0,64409.0,0.04287646]
[1721269107027,0.15438174,64410.0,64409.0,0.11887646]
[1721269107477,0.30963674,64410.0,64409.0,0.0760002]
[1721269107704,0.002794,64434.0,64420.0,0.04287626]
[1721269107924,0.155244,64415.0,64409.0,0.0760002]
[1721269108139,0.155238,64418.0,64417.0,0.04287626]
[1721269108594,0.46571,64418.0,64417.0,0.04287626]
[1721269109237,0.09305,64417.0,64411.0,0.04287626]
[1721269109443,0.15525,64412.0,64411.0,0.04287626]
[1721269109678,0.71318274,64412.0,64411.0,0.04287626]
[1721269109891,1.02368374,64412.0,64411.0,0.04287626]
[1721269110326,0.558815,64410.0,64409.0,2e-07]
[1721269110537,1.43421674,64410.0,64409.0,2e-07]
[1721269110755,0.81319674,64410.0,64409.0,2e-07]
[1721269111011,0.25438174,64410.0,64409.0,0.04287646]
[1721269111230,0.15438174,64410.0,64409.0,0.04287646]
[1721269111445,0.255233,64419.0,64418.0,0.04287626]
[1721269111690,0.25438174,64419.0,64418.0,0.04287626]
[1721269112140,0.15438174,64419.0,64412.0,0.0031046]
[1721269112358,0.09305,64426.0,64425.0,0.04287626]
[1721269112359,0.248266,64426.0,64425.0,0.04287626]
[1721269112573,0.658703,64426.0,64425.0,0.04287626]
[1721269112782,0.81308474,64426.0,64425.0,0.04287626]
[1721269113448,1.12352174,64426.0,64425.0,0.04287626]
[1721269113678,1.12352174,64426.0,64411.0,0.07717479]
[1721269113679,0.248276,64422.0,64421.0,0.04287626]
[1721269113895,0.81310974,64422.0,64421.0,0.04287626]
[1721269114333,0.40960774,64422.0,64421.0,0.04287626]
[1721269114774,0.72005974,64422.0,64421.0,0.04287626]
[1721269114996,0.25438174,64422.0,64421.0,0.04287626]
[1721269115215,0.15438174,64422.0,64421.0,0.04287626]
[1721269115653,0.02434334,64430.0,64423.0,0.155223]
[1721269115863,0.02434334,64430.0,64429.0,0.04287626]
[1721269116112,0.33393208,64430.0,64429.0,0.04287626]
[1721269116319,0.43393208,64430.0,64429.0,0.04287626]
[1721269116743,0.27872508,64430.0,64421.0,0.13777312]
[1721269116969,0.25717574,64429.0,64421.0,0.13777312]
[1721269117392,0.25438174,64429.0,64421.0,0.13777312]
[1721269117614,0.15438174,64429.0,64423.0,0.155223]
[1721269117826,0.02518334,64430.0,64422.0,0.00310419]
[1721269117827,0.00084,64430.0,64429.0,0.236909]
[1721269118055,0.002794,64468.0,64429.0,0.236909]
[1721269118056,0.002794,64452.0,64447.0,0.0808]
[1721269118304,0.15438174,64451.0,64447.0,0.0808]
[1721269119668,0.15438174,64451.0,64448.0,0.0628]
[1721269121891,0.310259,64463.0,64448.0,0.0628]
[1721269121892,0.09305,64461.0,64453.0,0.15515]
[1721269122144,0.15438174,64460.0,64454.0,0.155148]
[1721269122375,0.15438174,64460.0,64452.0,0.155152]
[1721269122825,0.15438174,64460.0,64457.0,0.07717479]
[1721269123039,0.09305,64468.0,64460.0,0.155134]
[1721269123260,0.15438174,64467.0,64461.0,0.0031024]
[1721269123489,0.15438174,64467.0,64466.0,0.465361]
[1721269123991,0.062151,64482.0,64466.0,0.465361]
[1721269123992,0.09305,64477.0,64469.0,0.155112]
[1721269124189,0.371153,64485.0,64469.0,0.155112]
[1721269124190,0.15438174,64476.0,64469.0,0.00310204]
[1721269124410,0.15438174,64476.0,64475.0,0.155098]
[1721269124630,0.061,64492.0,64475.0,0.155098]
[1721269124631,0.1364,64499.0,64475.0,0.1427]
[1721269124848,0.1364,64499.0,64481.0,0.310168]
[1721269124849,0.46304871,64491.0,64481.0,0.310168]
[1721269125074,0.15438174,64490.0,64485.0,0.07717479]
[1721269125315,0.002794,64510.0,64488.0,0.05]
[1721269125523,0.157816,64507.0,64494.0,0.465159]
[1721269125737,0.157816,64507.0,64490.0,0.310125]
[1721269125738,0.310045,64507.0,64492.0,0.155057]
[1721269125963,0.155032,64503.0,64492.0,0.155057]
[1721269126171,0.155027,64505.0,64494.0,0.155053]
[1721269126432,0.15503,64504.0,64491.0,0.310118]
[1721269126717,0.002794,64506.0,64493.0,0.155054]
[1721269127248,0.310171,64481.0,64473.0,0.0636]
[1721269127481,0.0608,64493.0,64467.0,0.46304871]
[1721269127482,0.1551,64475.0,64467.0,0.46304871]
[1721269127767,0.15438174,64474.0,64466.0,0.0636]
[1721269128005,0.155119,64467.0,64464.0,0.0781]
[1721269128247,0.0788,64481.0,64452.0,0.310307]
[1721269128248,0.15438174,64465.0,64455.0,0.0771]
[1721269128506,0.0607,64472.0,64447.0,0.0771]
[1721269128507,0.155151,64454.0,64447.0,0.0771]
[1721269128759,0.15438174,64453.0,64447.0,0.0771]
[1721269129247,0.155155,64452.0,64447.0,0.0771]
[1721269129507,0.15438174,64451.0,64447.0,0.0771]
[1721269129969,0.15438174,64451.0,64438.0,0.0604]
[1721269130214,0.15438174,64451.0,64423.0,0.0818]
[1721269130215,0.15438174,64439.0,64423.0,0.0818]
[1721269130471,0.155221,64424.0,64421.0,0.46304871]
[1721269130744,0.5,64423.0,64414.0,0.075]
[1721269131052,0.155255,64410.0,64402.0,0.075]
[1721269131290,0.465765,64410.0,64402.0,0.075]
[1721269131552,0.93065674,64410.0,64402.0,0.075]
[1721269131779,0.62014674,64410.0,64402.0,0.075]
[1721269132721,0.15438174,64410.0,64402.0,0.075]
[1721269132970,0.15438174,64410.0,64404.0,0.310538]
[1721269133192,0.002794,64421.0,64404.0,0.360538]
[1721269133415,0.002794,64421.0,64402.0,0.075]
[1721269133416,0.1,64429.0,64420.0,0.07717479]
[1721269133648,0.310416,64430.0,64420.0,0.07717479]
[1721269133881,0.102794,64429.0,64420.0,0.07717479]
[1721269134086,0.25521,64429.0,64420.0,0.07717479]
[1721269134360,0.155213,64428.0,64420.0,0.07717479]
[1721269134576,0.1,64427.0,64420.0,0.07717479]
[1721269134787,0.15438174,64427.0,64420.0,0.07717479]
[1721269135001,0.30959674,64427.0,64420.0,0.07717479]
[1721269135416,0.002794,64426.0,64421.0,0.0769]
[1721269135651,0.15438174,64427.0,64421.0,0.0769]
[1721269135869,0.15522,64425.0,64421.0,0.0769]
[1721269136084,0.310419,64429.0,64421.0,0.0769]
[1721269136085,0.15438174,64424.0,64421.0,0.0769]
[1721269136311,0.09305,64433.0,64421.0,0.0769]
[1721269136528,0.1,64435.0,64427.0,0.07717479]
[1721269136529,0.15717574,64432.0,64427.0,0.07717479]
[1721269136751,0.15438174,64432.0,64427.0,0.07717479]
[1721269136971,0.155177,64443.0,64430.0,0.155205]
[1721269137188,0.15438174,64442.0,64434.0,0.07717479]
[1721269137646,0.002794,64441.0,64440.0,0.155183]
[1721269137862,0.002794,64441.0,64436.0,0.310382]
[1721269137863,0.157946,64453.0,64441.0,0.15518]
[1721269138081,0.15438174,64452.0,64444.0,0.155172]
[1721269139157,0.15438174,64452.0,64442.0,0.23235079]
[1721269139372,0.002794,64451.0,64442.0,0.23235079]
[1721269139629,0.310291,64456.0,64442.0,0.23235079]
[1721269139630,0.15438174,64450.0,64442.0,0.07717479]
[1721269139846,0.15438174,64450.0,64444.0,0.155173]
[1721269140051,0.15438174,64450.0,64442.0,0.155176]
[1721269140268,0.15438174,64450.0,64438.0,0.00310308]
[1721269140476,0.15438174,64450.0,64443.0,0.155175]
[1721269140477,0.002794,64449.0,64443.0,0.155175]
[1721269140687,0.15515,64454.0,64436.0,0.155191]
[1721269140688,0.155167,64447.0,64436.0,0.155191]
[1721269140904,0.15438174,64446.0,64435.0,0.1428]
[1721269141116,0.15438174,64446.0,64437.0,0.155188]
[1721269141344,0.15438174,64446.0,64435.0,0.1428]
[1721269141345,0.155174,64444.0,64435.0,0.1428]
[1721269141565,0.15717574,64443.0,64435.0,0.1428]
[1721269142463,0.15438174,64443.0,64435.0,0.1428]
[1721269142693,0.002794,64442.0,64435.0,0.1428]
[1721269142923,0.002794,64442.0,64441.0,0.07717479]
[1721269142924,0.15717574,64442.0,64441.0,0.07717479]
[1721269143143,0.403364,64451.0,64441.0,0.07717479]
[1721269143361,0.15438174,64450.0,64441.0,0.07717479]
[1721269143571,0.002794,64449.0,64442.0,0.310356]
[1721269143782,0.002794,64449.0,64441.0,0.08027811]
[1721269143783,0.15438174,64448.0,64441.0,0.07717479]
[1721269143985,0.15438174,64448.0,64439.0,0.310369]
[1721269143986,0.15438174,64448.0,64439.0,0.155185]
[1721269144204,0.15438174,64448.0,64444.0,0.155172]
[1721269144421,0.15438174,64448.0,64441.0,0.23235379]
[1721269144634,0.15438174,64448.0,64438.0,0.310374]
[1721269144849,0.002794,64447.0,64438.0,0.310374]
[1721269145019,0.15438174,64447.0,64442.0,0.155176]
[1721269145429,0.002794,64452.0,64445.0,0.15517]
[1721269145630,0.15438174,64451.0,64443.0,0.23234979]
[1721269145834,0.15438174,64451.0,64441.0,0.155179]
[1721269146135,0.002794,64450.0,64439.0,0.310367]
[1721269146310,0.15438174,64449.0,64442.0,0.310355]
[1721269146518,0.15438174,64449.0,64443.0,0.155175]
[1721269147062,0.390359,64463.0,64443.0,0.155175]
[1721269147063,0.002794,64462.0,64450.0,0.079]
[1721269147295,0.002794,64460.0,64459.0,0.155137]
[1721269147512,0.15438174,64469.0,64459.0,0.13027706]
[1721269147722,0.15717574,64469.0,64461.0,0.15513]
[1721269147925,0.15717574,64469.0,64456.0,0.114]
[1721269147926,0.15438174,64469.0,64458.0,0.310279]
[1721269148136,0.002794,64467.0,64456.0,0.064]
[1721269148340,0.0653,64481.0,64456.0,0.064]
[1721269148341,0.002794,64475.0,64461.0,0.310264]
[1721269148566,0.002794,64473.0,64462.0,0.155128]
[1721269148768,0.31018,64479.0,64456.0,0.064]
[1721269148769,0.155112,64470.0,64458.0,0.155137]
[1721269148975,0.15438174,64469.0,64459.0,0.155136]
[1721269149376,0.15438174,64469.0,64458.0,0.310277]
[1721269149377,0.15438174,64469.0,64460.0,0.155134]
[1721269150032,0.155122,64466.0,64456.0,0.219143]
[1721269150211,0.15438174,64465.0,64456.0,0.064]
[1721269150447,0.15438174,64465.0,64456.0,0.219143]
[1721269150662,0.15438174,64465.0,64459.0,0.155135]
[1721269150835,0.155108,64472.0,64461.0,0.155132]
[1721269151069,0.312996,64474.0,64459.0,0.155135]
[1721269151070,0.30949074,64471.0,64459.0,0.155135]
[1721269151275,0.002794,64470.0,64460.0,0.155134]
[1721269151480,0.15438174,64469.0,64458.0,0.155138]
[1721269151685,0.15438174,64469.0,64456.0,0.374284]
[1721269151686,0.15438174,64469.0,64460.0,0.155132]
[1721269151898,0.002794,64468.0,64456.0,0.064]
[1721269152135,0.46460874,64469.0,64456.0,0.064]
[1721269152136,0.002794,64466.0,64457.0,0.155141]
[1721269152329,0.15438174,64467.0,64458.0,0.155137]
[1721269153372,0.30949974,64467.0,64456.0,0.064]
[1721269153520,0.30949974,64467.0,64457.0,0.15514]
[1721269153727,0.002794,64466.0,64458.0,0.155139]
[1721269153899,0.15438174,64466.0,64458.0,0.155139]
[1721269154102,0.15438174,64466.0,64456.0,0.064]
[1721269154103,0.15438174,64466.0,64459.0,0.07717479]
[1721269154739,0.002794,64472.0,64460.0,0.08480229]
[1721269155008,0.15438174,64472.0,64466.0,0.12717479]
[1721269155211,0.15438174,64472.0,64466.0,0.07717479]
[1721269155535,0.155078,64484.0,64473.0,0.155101]
[1721269155707,0.30946174,64483.0,64473.0,0.155101]
[1721269155860,0.30946174,64483.0,64474.0,0.00310169]
[1721269156061,0.30946174,64483.0,64474.0,0.08027648]
[1721269156062,0.15438174,64483.0,64474.0,0.08027648]
[1721269156264,0.15438174,64483.0,64477.0,0.155092]
[1721269156631,0.15438174,64483.0,64474.0,0.07717479]
[1721269156632,0.15438174,64482.0,64475.0,0.310196]
[1721269156834,0.15438174,64482.0,64474.0,0.15307479]